fUSD/lending_fUSD_20250107
["ID","MTS","AMOUNT","RATE_DAILY","PERIOD"]
[347999363,1736263853811,-534.75,0.00010513,2]
[347999365,1736263853820,-906.3,0.00010513,2]
[347999367,1736263853829,-500.0,0.00010513,2]
[347999369,1736263853838,-500.0,0.00010513,2]
[347999371,1736263853847,-508.55,0.00010513,2]
[347999373,1736263853858,-500.0,0.00010513,2]
[347999374,1736263853871,-500.0,0.00010513,2]
[347999376,1736263853880,-571.55,0.00010513,2]
[347999379,1736263853890,-884.36,0.00010513,2]
[347999380,1736263853900,-500.0,0.00010513,2]
[347999383,1736263853909,-500.0,0.00010513,2]
[347999384,1736263853919,-500.0,0.00010513,2]
[347999387,1736263853929,-500.0,0.00010513,2]
[347999389,1736263853939,-852.43,0.00010513,2]
[347999391,1736263853948,-500.0,0.00010513,2]
[347999393,1736263853958,-500.0,0.00010513,2]
[347999395,1736263853968,-500.0,0.00010513,2]
[347999397,1736263853978,-548.31,0.00010513,2]
[347999399,1736263853987,-500.0,0.00010513,2]
[347999400,1736263853996,-568.64,0.00010513,2]
[347999403,1736263854006,-500.0,0.00010513,2]
[347999405,1736263854016,-500.0,0.00010513,2]
[347999407,1736263854026,-500.0,0.00010513,2]
[347999409,1736263854035,-500.0,0.00010513,2]
[347999411,1736263854044,-500.0,0.00010513,2]
[347999412,1736263854053,-516.55,0.00010513,2]
[347999414,1736263854062,-500.0,0.00010513,2]
[347999416,1736263854072,-500.0,0.00010513,2]
[347999418,1736263854082,-500.0,0.00010513,2]
[347999420,1736263854091,-500.0,0.00010513,2]
[347999422,1736263854100,-599.41,0.00010513,2]
[347999424,1736263854109,-500.0,0.00010513,2]
[347999426,1736263854120,-811.0,0.00010513,2]
[347999428,1736263854130,-500.0,0.00010513,2]
[347999430,1736263854140,-500.0,0.00010513,2]
[347999432,1736263854150,-991.0,0.00010513,2]
[347999434,1736263854160,-500.0,0.00010513,2]
[347999436,1736263854170,-500.0,0.00010513,2]
[347999438,1736263854180,-550.06,0.00010513,2]
[347999440,1736263854191,-597.15,0.00010513,2]
[347999442,1736263854203,-620.73,0.00010513,2]
[347999444,1736263854213,-500.0,0.00010513,2]
[347999446,1736263854222,-778.27,0.00010513,2]
[347999448,1736263854232,-564.27,0.00010513,2]
[347999450,1736263854241,-500.0,0.00010513,2]
[347999452,1736263854251,-500.0,0.00010513,2]
[347999454,1736263854260,-523.85,0.00010513,2]
[347999456,1736263854272,-503.12,0.00010513,2]
[347999458,1736263854282,-513.18,0.00010513,2]
[347999459,1736263854292,-500.0,0.00010513,2]
[347999460,1736263854303,-531.76,0.00010513,2]
[347999461,1736263854314,-500.0,0.00010513,2]
[347999462,1736263854324,-561.53,0.00010513,2]
[347999463,1736263854334,-570.52,0.00010513,2]
[347999464,1736263854344,-2075.27,0.00010513,2]
[347999465,1736263854354,-500.0,0.00010513,2]
[347999466,1736263854364,-500.0,0.00010513,2]
[347999467,1736263854379,-500.0,0.00010513,2]
[347999468,1736263854389,-500.0,0.00010513,2]
[347999470,1736263854399,-1754.46,0.00010513,2]
[347999472,1736263854409,-500.0,0.00010513,2]
[347999474,1736263854419,-500.0,0.00010513,2]
[347999476,1736263854431,-500.0,0.00010513,2]
[347999479,1736263854441,-500.0,0.00010513,2]
[347999481,1736263854450,-500.0,0.00010513,2]
[347999483,1736263854460,-500.0,0.00010513,2]
[347999485,1736263854470,-500.0,0.00010513,2]
[347999486,1736263854479,-557.43,0.00010513,2]
[347999488,1736263854490,-500.0,0.00010513,2]
[347999490,1736263854500,-588.14,0.00010513,2]
[347999493,1736263854509,-500.0,0.00010513,2]
[347999495,1736263854520,-500.0,0.00010513,2]
[347999497,1736263854530,-548.77,0.00010513,2]
[347999499,1736263854540,-656.79,0.00010513,2]
[347999500,1736263854549,-555.13,0.00010513,2]
[347999502,1736263854559,-500.0,0.00010513,2]
[347999505,1736263854570,-500.0,0.00010513,2]
[347999507,1736263854581,-575.23,0.00010513,2]
[347999509,1736263854591,-500.0,0.00010513,2]
[347999511,1736263854601,-500.0,0.00010513,2]
[347999513,1736263854610,-500.0,0.00010513,2]
[347999515,1736263854624,-500.0,0.00010513,2]
[347999517,1736263854634,-1047.1,0.00010513,2]
[347999518,1736263854643,-619.43,0.00010513,2]
[347999520,1736263854653,-567.84,0.00010513,2]
[347999522,1736263854663,-514.55,0.00010513,2]
[347999524,1736263854673,-500.0,0.00010513,2]
[347999527,1736263854682,-500.0,0.00010513,2]
[347999528,1736263854692,-834.65,0.00010513,2]
[347999530,1736263854702,-500.0,0.00010513,2]
[347999532,1736263854712,-731.55,0.00010513,2]
[347999534,1736263854723,-580.77,0.00010513,2]
[347999536,1736263854732,-500.0,0.00010513,2]
[347999538,1736263854741,-500.0,0.00010513,2]
[347999540,1736263854750,-655.93,0.00010513,2]
[347999542,1736263854760,-500.0,0.00010513,2]
[347999544,1736263854770,-500.0,0.00010513,2]
[347999546,1736263854779,-500.0,0.00010513,2]
[347999548,1736263854789,-837.41,0.00010513,2]
[347999550,1736263854799,-500.0,0.00010513,2]
[347999552,1736263854808,-500.0,0.00010513,2]
[347999554,1736263854818,-751.57,0.00010513,2]
[347999556,1736263854827,-553.46,0.00010513,2]
[347999558,1736263854837,-1406.87,0.00010513,2]
[347999560,1736263854846,-908.17,0.00010513,2]
[347999562,1736263854856,-621.0,0.00010513,2]
[347999564,1736263854866,-1446.51,0.00010513,2]
[347999566,1736263854879,-549.99,0.00010513,2]
[347999568,1736263854889,-981.24,0.00010513,2]
[347999571,1736263854898,-500.0,0.00010513,2]
[347999573,1736263854908,-500.0,0.00010513,2]
[347999575,1736263854919,-1988.67,0.00010513,2]
[347999577,1736263854928,-741.68,0.00010513,2]
[347999579,1736263854938,-616.1,0.00010513,2]
[347999581,1736263854947,-500.0,0.00010513,2]
[347999583,1736263854958,-500.0,0.00010513,2]
[347999585,1736263854969,-500.0,0.00010513,2]
[347999587,1736263854979,-500.0,0.00010513,2]
[347999589,1736263854988,-863.83,0.00010513,2]
[347999591,1736263854997,-500.0,0.00010513,2]
[347999593,1736263855007,-500.0,0.00010513,2]
[347999595,1736263855016,-782.39,0.00010513,2]
[347999597,1736263855026,-649.32,0.00010513,2]
[347999599,1736263855035,-579.24,0.00010513,2]
[347999601,1736263855044,-1155.68,0.00010513,2]
[347999603,1736263855054,-500.0,0.00010513,2]
[347999605,1736263855063,-500.0,0.00010513,2]
[347999606,1736263855073,-820.77,0.00010513,2]
[347999608,1736263855082,-500.0,0.00010513,2]
[347999610,1736263855092,-457.51791365,0.00010513,2]
[347999612,1736263855102,-1040.81,0.00010513,2]
[347999614,1736263855113,-726.45,0.00010513,2]
[347999616,1736263855128,-805.89,0.00010513,2]
[347999618,1736263855138,-500.0,0.00010513,2]
[347999620,1736263855148,-527.55,0.00010513,2]
[347999622,1736263855157,-500.0,0.00010513,2]
[347999624,1736263855167,-1107.87,0.00010513,2]
[347999626,1736263855177,-1785.31,0.00010513,2]
[347999628,1736263855187,-500.0,0.00010513,2]
[347999630,1736263855198,-509.4,0.00010513,2]
[347999632,1736263855209,-690.17,0.00010513,2]
[347999634,1736263855219,-2268.04,0.00010513,2]
[347999636,1736263855229,-875.02,0.00010513,2]
[347999637,1736263855239,-500.0,0.00010513,2]
[347999639,1736263855249,-614.67,0.00010513,2]
[347999640,1736263855258,-500.0,0.00010513,2]
[347999641,1736263855268,-500.0,0.00010513,2]
[347999642,1736263855278,-556.86,0.00010513,2]
[347999643,1736263855289,-1180.53,0.00010513,2]
[347999644,1736263855300,-500.0,0.00010513,2]
[347999645,1736263855311,-500.0,0.00010513,2]
[347999646,1736263855321,-633.16,0.00010513,2]
[347999647,1736263855331,-776.12,0.00010513,2]
[347999649,1736263855341,-500.0,0.00010513,2]
[347999650,1736263855351,-578.66,0.00010513,2]
[347999652,1736263855361,-771.34,0.00010513,2]
[347999654,1736263855375,-500.0,0.00010513,2]
[347999656,1736263855385,-1479.16,0.00010513,2]
[347999657,1736263855395,-612.39,0.00010513,2]
[347999659,1736263855404,-1118.43,0.00010513,2]
[347999661,1736263855414,-500.0,0.00010513,2]
[347999663,1736263855424,-509.3,0.00010513,2]
[347999664,1736263855434,-2871.69,0.00010513,2]
[347999665,1736263855443,-615.17,0.00010513,2]
[347999666,1736263855453,-1115.31,0.00010513,2]
[347999667,1736263855463,-582.87,0.00010513,2]
[347999668,1736263855472,-1021.43,0.00010513,2]
[347999669,1736263855482,-500.0,0.00010513,2]
[347999670,1736263855491,-578.36,0.00010513,2]
[347999671,1736263855500,-516.19,0.00010513,2]
[347999672,1736263855509,-1555.21,0.00010513,2]
[347999673,1736263855519,-884.89,0.00010513,2]
[347999674,1736263855530,-500.0,0.00010513,2]
[347999675,1736263855540,-668.69,0.00010513,2]
[347999676,1736263855549,-2547.52,0.00010513,2]
[347999677,1736263855559,-650.96,0.00010513,2]
[347999678,1736263855569,-581.37,0.00010513,2]
[347999679,1736263855578,-985.91,0.00010513,2]
[347999680,1736263855589,-500.0,0.00010513,2]
[347999681,1736263855598,-684.5,0.00010513,2]
[347999682,1736263855608,-500.0,0.00010513,2]
[347999683,1736263855622,-500.0,0.00010513,2]
[347999684,1736263855634,-500.0,0.00010513,2]
[347999685,1736263855646,-942.88,0.00010513,2]
[347999686,1736263855656,-500.0,0.00010513,2]
[347999687,1736263855665,-1636.98,0.00010513,2]
[347999688,1736263855675,-500.0,0.00010513,2]
[347999689,1736263855684,-4523.36,0.00010513,2]
[347999690,1736263855694,-500.0,0.00010513,2]
[347999691,1736263855704,-3027.15,0.00010513,2]
[347999692,1736263855714,-702.19,0.00010513,2]
[347999693,1736263855724,-500.0,0.00010513,2]
[347999694,1736263855733,-500.0,0.00010513,2]
[347999695,1736263855742,-500.0,0.00010513,2]
[347999696,1736263855751,-500.0,0.00010513,2]
[347999697,1736263855761,-500.0,0.00010513,2]
[347999698,1736263855771,-1968.16,0.00010513,2]
[347999699,1736263855782,-984.26,0.00010513,2]
[347999700,1736263855791,-1440.07,0.00010513,2]
[347999701,1736263855801,-500.0,0.00010513,2]
[347999702,1736263855811,-2109.75,0.00010513,2]
[347999703,1736263855820,-650.12,0.00010513,2]
[347999704,1736263855830,-631.0,0.00010513,2]
[347999705,1736263855840,-600.1,0.00010513,2]
[347999706,1736263855849,-500.0,0.00010513,2]
[347999707,1736263855859,-275.8598509,0.00010513,2]
[347999708,1736263855870,-1933.7,0.00010513,2]
[347999709,1736263855880,-649.63,0.00010513,2]
[347999710,1736263855890,-500.0,0.00010513,2]
[347999711,1736263855901,-6413.79,0.00010513,2]
[347999712,1736263855912,-500.0,0.00010513,2]
[347999713,1736263855922,-2461.78,0.00010513,2]
[347999714,1736263855932,-500.0,0.00010513,2]
[347999715,1736263855942,-597.54,0.00010513,2]
[347999716,1736263855952,-1979.41,0.00010513,2]
[347999717,1736263855962,-500.0,0.00010513,2]
[347999718,1736263855972,-500.0,0.00010513,2]
[347999719,1736263855981,-500.0,0.00010513,2]
[347999720,1736263855991,-712.87,0.00010513,2]
[347999721,1736263856001,-500.0,0.00010513,2]
[347999722,1736263856011,-500.0,0.00010513,2]
[347999723,1736263856020,-1002.51,0.00010513,2]
[347999724,1736263856029,-3266.67,0.00010513,2]
[347999725,1736263856039,-3614.29,0.00010513,2]
[347999726,1736263856048,-500.0,0.00010513,2]
[347999727,1736263856058,-552.42,0.00010513,2]
[347999728,1736263856067,-500.0,0.00010513,2]
[347999729,1736263856077,-604.64,0.00010513,2]
[347999730,1736263856087,-687.61,0.00010513,2]
[347999731,1736263856096,-500.0,0.00010513,2]
[347999732,1736263856106,-2385.14,0.00010513,2]
[347999733,1736263856115,-1320.68,0.00010513,2]
[347999734,1736263856129,-500.0,0.00010513,2]
[347999735,1736263856138,-979.45,0.00010513,2]
[347999736,1736263856149,-500.0,0.00010513,2]
[347999737,1736263856158,-5903.24,0.00010513,2]
[347999738,1736263856168,-500.0,0.00010513,2]
[347999739,1736263856177,-1534.65,0.00010514,2]
[347999740,1736263856188,-2164.37,0.00010514,2]
[347999741,1736263856200,-1978.2,0.00010514,2]
[347999742,1736263856210,-933.31,0.00010514,2]
[347999743,1736263856219,-2121.86,0.00010514,2]
[347999744,1736263856228,-1439.55,0.00010514,2]
[347999745,1736263856238,-2440.6,0.00010514,2]
[347999746,1736263856248,-2163.32,0.00010514,2]
[347999747,1736263856259,-2806.86,0.00010514,2]
[347999748,1736263856269,-2814.6,0.00010514,2]
[347999749,1736263856280,-3594.7,0.00010514,2]
[347999750,1736263856291,-6153.33,0.00010514,2]
[347999751,1736263856301,-12102.56,0.00010514,2]
[347999752,1736263856311,-1495.29,0.00010516,2]
[347999753,1736263856321,-3653.97,0.00010516,2]
[347999754,1736263856332,-500.0,0.00010516,2]
[347999755,1736263856341,-1502.21,0.00010516,2]
[347999756,1736263856351,-1958.4,0.00010516,2]
[347999757,1736263856361,-786.0,0.00010516,2]
[347999758,1736263856374,-2582.24,0.00010516,2]
[347999759,1736263856384,-1469.08,0.00010516,2]
[347999760,1736263856394,-1837.67,0.00010516,2]
[347999761,1736263856404,-1247.74,0.00010516,2]
[347999762,1736263856413,-4398.53,0.00010516,2]
[347999763,1736263856423,-3587.21,0.00010516,2]
[347999764,1736263856432,-3180.23,0.00010516,2]
[347999765,1736263856442,-3591.59,0.00010516,2]
[347999766,1736263856452,-663.45,0.00010516,2]
[347999767,1736263856462,-5338.56,0.00010516,2]
[347999768,1736263856472,-1222.58,0.00010516,2]
[347999769,1736263856481,-1000.0,0.00010521,2]
[347999770,1736263856490,-150.0,0.00010627,2]
[347999771,1736263856500,-1588.59169286,0.00010638,2]
[347999772,1736263856509,-150.0,0.00010638,2]
[347999773,1736263856519,-151.33993767,0.00010673,2]
[347999774,1736263856529,-4515.55,0.00010685,2]
[347999775,1736263856538,-1828.4,0.00010685,2]
[347999776,1736263856548,-5701.5,0.00010685,2]
[347999777,1736263856558,-3083.97,0.00010685,2]
[347999778,1736263856567,-5138.6,0.00010685,2]
[347999779,1736263856577,-16018.72,0.00010685,2]
[347999780,1736263856587,-830.06,0.00010685,2]
[347999781,1736263856596,-1787.15,0.00010685,2]
[347999782,1736263856606,-5133.87,0.00010685,2]
[347999783,1736263856615,-2801.75,0.00010685,2]
[347999784,1736263856630,-8554.94,0.00010685,2]
[347999785,1736263856640,-4563.86,0.00010685,2]
[347999786,1736263856649,-1496.82,0.00010685,2]
[347999787,1736263856659,-860.4,0.00010685,2]
[347999788,1736263856668,-4689.52,0.00010685,2]
[347999789,1736263856677,-2860.17,0.00010685,2]
[347999790,1736263856687,-944.74,0.00010685,2]
[347999791,1736263856697,-7170.94,0.00010685,2]
[347999792,1736263856706,-9213.36,0.00010685,2]
[347999793,1736263856715,-540.9,0.00010685,2]
[347999794,1736263856724,-824.76,0.00010685,2]
[347999795,1736263856734,-500.0,0.00010685,2]
[347999796,1736263856743,-3420.5,0.00010685,2]
[347999797,1736263856753,-874.68,0.00010685,2]
[347999798,1736263856762,-664.73,0.00010685,2]
[347999799,1736263856772,-173.06708308,0.00010685,2]
[347999800,1736263856781,-792.91,0.00010685,2]
[347999801,1736263856790,-912.97,0.00010685,2]
[347999802,1736263856800,-161.48,0.00010685,2]
[347999803,1736263856810,-296.962,0.00010685,2]
[347999804,1736263856820,-150.0,0.00010697,2]
[347999805,1736263856829,-177.894438,0.00010728,2]
[347999806,1736263856839,-150.0,0.00010751,2]
[347999807,1736263856849,-157.083,0.0001076,2]
[347999808,1736263856858,-150.0,0.00010765,2]
[347999809,1736263856870,-150.0,0.00010765,2]
[347999810,1736263856879,-1588.59169286,0.00010779,2]
[347999811,1736263856889,-150.0,0.00010783,2]
[347999812,1736263856899,-1965.62,0.00010786,2]
[347999813,1736263856910,-1441.85,0.00010786,2]
[347999814,1736263856919,-2031.12,0.00010786,2]
[347999815,1736263856929,-584.14,0.00010786,2]
[347999816,1736263856939,-500.0,0.00010786,2]
[347999817,1736263856948,-1347.38,0.00010786,2]
[347999818,1736263856957,-1337.9,0.00010786,2]
[347999819,1736263856967,-500.0,0.00010786,2]
[347999820,1736263856976,-726.31,0.00010786,2]
[347999821,1736263856986,-617.27,0.00010786,2]
[347999822,1736263856995,-1113.64,0.00010786,2]
[347999823,1736263857004,-519.08,0.00010786,2]
[347999824,1736263857198,-682.82,0.00010786,2]
[347999825,1736263857208,-767.32,0.00010786,2]
[347999826,1736263857218,-1790.9,0.00010786,2]
[347999827,1736263857227,-1842.07,0.00010786,2]
[347999828,1736263857238,-2333.72,0.00010786,2]
[347999829,1736263857247,-1453.48,0.00010786,2]
[347999830,1736263857256,-782.9,0.00010786,2]
[347999831,1736263857266,-1135.22,0.00010786,2]
[347999832,1736263857280,-500.0,0.00010786,2]
[347999833,1736263857290,-908.06,0.00010786,2]
[347999834,1736263857300,-925.35,0.00010786,2]
[347999835,1736263857309,-877.63,0.00010786,2]
[347999836,1736263857318,-579.05,0.00010786,2]
[347999837,1736263857328,-1845.34,0.00010786,2]
[347999838,1736263857337,-795.6,0.00010786,2]
[347999839,1736263857347,-2158.61,0.00010786,2]
[347999840,1736263857356,-714.94,0.00010786,2]
[347999841,1736263857366,-1826.77,0.00010786,2]
[347999842,1736263857379,-849.05,0.00010786,2]
[347999843,1736263857389,-636.08,0.00010786,2]
[347999844,1736263857398,-1448.38,0.00010786,2]
[347999845,1736263857408,-1120.62,0.00010786,2]
[347999846,1736263857418,-1088.41,0.00010786,2]
[347999847,1736263857428,-3453.96,0.00010786,2]
[347999848,1736263857438,-1554.61,0.00010786,2]
[347999849,1736263857447,-1217.44,0.00010786,2]
[347999850,1736263857457,-500.0,0.00010786,2]
[347999851,1736263857467,-870.05,0.00010786,2]
[347999852,1736263857476,-672.55,0.00010786,2]
[347999853,1736263857486,-645.86574053,0.00010786,2]
[347999854,1736263857495,-739.47,0.00010786,2]
[347999855,1736263857505,-1595.12,0.00010786,2]
[347999856,1736263857514,-1563.31,0.00010786,2]
[347999857,1736263857523,-500.0,0.00010786,2]
[347999858,1736263857533,-996.09,0.00010786,2]
[347999859,1736263857542,-1557.7,0.00010786,2]
[347999860,1736263857553,-883.86,0.00010786,2]
[347999861,1736263857562,-765.55,0.00010786,2]
[347999862,1736263857571,-500.0,0.00010786,2]
[347999863,1736263857582,-724.56,0.00010786,2]
[347999864,1736263857591,-2608.4,0.00010786,2]
[347999865,1736263857601,-1221.39,0.00010786,2]
[347999866,1736263857610,-500.0,0.00010786,2]
[347999867,1736263857623,-500.0,0.00010786,2]
[347999868,1736263857632,-824.39,0.00010786,2]
[347999869,1736263857641,-575.2,0.00010786,2]
[347999870,1736263857651,-731.88,0.00010786,2]
[347999871,1736263857660,-500.0,0.00010786,2]
[347999872,1736263857669,-500.0,0.00010786,2]
[347999873,1736263857679,-1460.43,0.00010786,2]
[347999874,1736263857688,-856.3,0.00010786,2]
[347999875,1736263857697,-3613.69,0.00010786,2]
[347999876,1736263857706,-500.0,0.00010786,2]
[347999877,1736263857715,-991.0,0.00010786,2]
[347999878,1736263857724,-500.0,0.00010786,2]
[347999879,1736263857733,-841.81,0.00010786,2]
[347999880,1736263857743,-1442.72,0.00010786,2]
[347999881,1736263857752,-1892.87,0.00010786,2]
[347999882,1736263857761,-500.0,0.00010786,2]
[347999883,1736263857771,-774.17,0.00010786,2]
[347999884,1736263857780,-907.31,0.00010786,2]
[347999885,1736263857789,-513.49,0.00010786,2]
[347999886,1736263857798,-3237.55,0.00010786,2]
[347999887,1736263857807,-672.45,0.00010786,2]
[347999888,1736263857816,-752.65,0.00010786,2]
[347999889,1736263857826,-1344.94,0.00010786,2]
[347999890,1736263857835,-881.2,0.00010786,2]
[347999891,1736263857844,-2241.45,0.00010786,2]
[347999892,1736263857854,-500.0,0.00010786,2]
[347999893,1736263857863,-500.0,0.00010786,2]
[347999894,1736263857875,-1777.72,0.00010786,2]
[347999895,1736263857885,-1459.14,0.00010786,2]
[347999896,1736263857894,-731.55,0.00010786,2]
[347999897,1736263857904,-599.79,0.00010786,2]
[347999898,1736263857913,-678.26,0.00010786,2]
[347999899,1736263857923,-7213.42,0.00010786,2]
[347999900,1736263857932,-810.17,0.00010786,2]
[347999901,1736263857942,-1859.3,0.00010786,2]
[347999902,1736263857952,-518.99,0.00010786,2]
[347999903,1736263857962,-500.0,0.00010786,2]
[347999904,1736263857971,-857.54,0.00010786,2]
[347999905,1736263857981,-982.74,0.00010786,2]
[347999906,1736263857991,-1868.88,0.00010786,2]
[347999907,1736263858000,-1684.02,0.00010786,2]
[347999908,1736263858009,-1374.84,0.00010786,2]
[347999909,1736263858018,-6155.23,0.00010786,2]
[347999910,1736263858028,-527.17,0.00010786,2]
[347999911,1736263858037,-617.1,0.00010786,2]
[347999912,1736263858046,-960.41,0.00010786,2]
[347999913,1736263858055,-616.31,0.00010786,2]
[347999914,1736263858064,-500.0,0.00010786,2]
[347999915,1736263858073,-500.0,0.00010786,2]
[347999916,1736263858083,-821.48,0.00010786,2]
[347999917,1736263858092,-707.3,0.00010786,2]
[347999918,1736263858101,-1175.09,0.00010786,2]
[347999919,1736263858110,-500.0,0.00010786,2]
[347999920,1736263858122,-732.27,0.00010786,2]
[347999921,1736263858131,-2127.0,0.00010786,2]
[347999922,1736263858140,-1326.01,0.00010786,2]
[347999923,1736263858149,-500.0,0.00010786,2]
[347999924,1736263858159,-1159.97,0.00010786,2]
[347999925,1736263858168,-992.99,0.00010786,2]
[347999926,1736263858177,-990.18,0.00010786,2]
[347999927,1736263858187,-500.0,0.00010786,2]
[347999928,1736263858199,-1210.53,0.00010786,2]
[347999929,1736263858208,-2494.45,0.00010786,2]
[347999930,1736263858218,-2494.45,0.00010786,2]
[347999931,1736263858228,-749.09,0.00010786,2]
[347999932,1736263858238,-591.84,0.00010786,2]
[347999933,1736263858247,-577.66,0.00010786,2]
[347999934,1736263858256,-712.92,0.00010786,2]
[347999935,1736263858266,-978.74,0.00010786,2]
[347999936,1736263858276,-1565.79,0.00010786,2]
[347999937,1736263858286,-1500.54,0.00010786,2]
[347999938,1736263858296,-1011.75,0.00010786,2]
[347999939,1736263858306,-1806.6,0.00010786,2]
[347999940,1736263858315,-167.39,0.00010786,2]
[347999941,1736263858325,-2941.9,0.00010786,2]
[347999942,1736263858334,-838.31,0.00010786,2]
[347999943,1736263858344,-621.15,0.00010786,2]
[347999944,1736263858353,-1397.55,0.00010786,2]
[347999945,1736263858363,-1538.83,0.00010786,2]
[347999946,1736263858375,-1429.25,0.00010786,2]
[347999947,1736263858384,-500.0,0.00010786,2]
[347999948,1736263858393,-1154.68,0.00010786,2]
[347999949,1736263858402,-524.95,0.00010786,2]
[347999950,1736263858412,-902.1,0.00010786,2]
[347999951,1736263858421,-716.48,0.00010786,2]
[347999952,1736263858431,-765.88,0.00010786,2]
[347999953,1736263858440,-686.62,0.00010786,2]
[347999954,1736263858450,-1845.75,0.00010786,2]
[347999955,1736263858459,-1842.45,0.00010786,2]
[347999956,1736263858469,-7573.87,0.00010786,2]
[347999957,1736263858478,-1551.13,0.00010786,2]
[347999958,1736263858487,-798.85,0.00010786,2]
[347999959,1736263858497,-1030.35,0.00010786,2]
[347999960,1736263858506,-512.79,0.00010786,2]
[347999961,1736263858515,-818.81,0.00010786,2]
[347999962,1736263858525,-1425.05,0.00010786,2]
[347999963,1736263858534,-1084.42,0.00010786,2]
[347999964,1736263858543,-1500.25,0.00010786,2]
[347999965,1736263858553,-942.4,0.00010786,2]
[347999966,1736263858562,-500.0,0.00010786,2]
[347999967,1736263858571,-7527.44,0.00010786,2]
[347999968,1736263858581,-650.14,0.00010786,2]
[347999969,1736263858590,-1350.85,0.00010786,2]
[347999970,1736263858599,-3410.6,0.00010786,2]
[347999971,1736263858608,-1276.15,0.00010786,2]
[347999972,1736263858619,-932.71,0.00010786,2]
[347999973,1736263858629,-1746.81,0.00010786,2]
[347999974,1736263858638,-958.49,0.00010786,2]
[347999975,1736263858647,-500.0,0.00010786,2]
[347999976,1736263858656,-1669.23,0.00010786,2]
[347999977,1736263858666,-1546.58,0.00010786,2]
[347999978,1736263858675,-984.81,0.00010786,2]
[347999979,1736263858684,-500.0,0.00010786,2]
[347999980,1736263858694,-972.03,0.00010786,2]
[347999981,1736263858703,-1410.46,0.00010786,2]
[347999982,1736263858712,-589.38,0.00010786,2]
[347999983,1736263858721,-739.84,0.00010786,2]
[347999984,1736263858731,-500.0,0.00010786,2]
[347999985,1736263858740,-500.0,0.00010786,2]
[347999986,1736263858750,-1204.56,0.00010786,2]
[347999987,1736263858759,-888.08,0.00010786,2]
[347999988,1736263858768,-1988.71,0.00010786,2]
[347999989,1736263858777,-500.0,0.00010786,2]
[347999990,1736263858787,-500.0,0.00010786,2]
[347999991,1736263858796,-500.0,0.00010786,2]
[347999992,1736263858806,-500.0,0.00010786,2]
[347999993,1736263858815,-773.36,0.00010786,2]
[347999994,1736263858825,-2541.66,0.00010786,2]
[347999995,1736263858835,-500.0,0.00010786,2]
[347999996,1736263858844,-928.03,0.00010786,2]
[347999997,1736263858853,-274.64,0.00010786,2]
[347999998,1736263858864,-500.0,0.00010786,2]
[347999999,1736263858876,-500.0,0.00010787,2]
[348000000,1736263858885,-500.0,0.00010787,2]
[348000001,1736263858895,-556.89,0.00010787,2]